{"text_format":"1","workbook":"xlsx","n_sheets":3,"sheets":["Pano","Malzeme Listesi","Özet Veri"],"not_rendered":{"charts":0,"images":0,"macros":1,"external_links":0,"defined_names":13,"comments":0,"pivot_tables":1},"unopened":[],"bounds":{"document_bytes":16777216,"sheet_cells":100000,"rows_first":2000,"rows_last":500,"rows_between":2000,"halvings":0,"cell_chars":16384,"cell_head_chars":4096},"cells_cut":0,"cells_raw":0,"read":"whole","date_system":"1900"}

{"sheet":"Pano","index":0,"n_rows":20,"n_cols":6,"rows_kept":20,"cut":false,"hidden":false,"merged":[]}
[null,"Pano"]
[]
[]
[null,null,null,null,null,"Toplam Sayı"]
[null,null,null,null,null,{"$f":"GETPIVOTDATA(\"Sayı\",'Özet Veri'!$B$11)","v":3}]
[]
[null,null,null,null,null,"Toplam Aylık Maliyet"]
[null,null,null,null,null,{"$f":"GETPIVOTDATA(\"Toplam Aylık Maliyet\",'Özet Veri'!$B$11)","v":1765.5943035068672}]
[]
[null,null,null,null,null,"İşletim Maliyetleri"]
[null,null,null,null,null,{"$f":"GETPIVOTDATA(\"İşletim Maliyetleri\",'Özet Veri'!$B$11)","v":605}]
[]
[null,null,null,null,null,"Aylık Amortisman"]
[null,null,null,null,null,{"$f":"GETPIVOTDATA(\"Aylık Amortisman\",'Özet Veri'!$B$11)","v":659.72222222222217}]
[]
[null,null,null,null,null,"Ödeme Tutarı"]
[null,null,null,null,null,{"$f":"GETPIVOTDATA(\"Ödeme Tutarı\",'Özet Veri'!$B$11)","v":1160.5943035068672}]
[]
[null,null,null,null,null,"Geçerli Değer"]
[null,null,null,null,null,{"$f":"GETPIVOTDATA(\"Geçerli Değer \",'Özet Veri'!$B$11)","v":36534.931506849316}]

{"sheet":"Malzeme Listesi","index":1,"n_rows":9,"n_cols":20,"rows_kept":9,"cut":false,"hidden":false,"merged":[]}
[null,"Malzeme Listesi"]
[]
[null,null,null,"Kalan aylık ödeme şu tutardan az olduğunda vurgula: ",20]
[]
[null,"Varlık veya Seri Numarası","Eşya Açıklaması\n(Yapı ve Model)","Yer","Koşul","Satıcı","Kalan Hizmet Yılı","İlk Değer","Peşinat","Satın Alma veya Kiralama Tarihi","Kredi Vadesi\n(Yıl)","Kredi Oranı","Aylık İşletim Maliyetleri","Sözleşme Sonunda Beklenen Değer","Kalan Aylık Ödeme","Aylık Ödeme","Toplam Aylık Maliyet","Yıllık Amortisman (Doğru)","Aylık Amortisman (Doğru)","Geçerli Değer"]
[null,123,"Yapı Model 1","Ana dal","İyi","Yerel",5,30000,5000,"2011-01-15",4,0.1,200,20000,{"$f":"IFERROR(SUMPRODUCT(--(DAY(ROW(OFFSET($A$1,,,DATE(YEAR(MALZEME[[#This Row],[Satın Alma veya Kiralama Tarihi]])+MALZEME[[#This Row],[Kredi Vadesi\n(Yıl)]],MONTH(MALZEME[[#This Row],[Satın Alma veya Kiralama Tarihi]])-1,DAY(MALZEME[[#This Row],[Satın Alma veya Kiralama Tarihi]]))-TODAY()))+DATE(YEAR(MALZEME[[#This Row],[Satın Alma veya Kiralama Tarihi]])+MALZEME[[#This Row],[Kredi Vadesi\n(Yıl)]],MONTH(MALZEME[[#This Row],[Satın Alma veya Kiralama Tarihi]]),DAY(MALZEME[[#This Row],[Satın Alma veya Kiralama Tarihi]]))-1)=DAY(MALZEME[[#This Row],[Satın Alma veya Kiralama Tarihi]]))),0)","v":24},{"$f":"IFERROR(-(MALZEME[İlk Değer]>0)*(MALZEME[İlk Değer]<>MALZEME[Peşinat])*PMT(MALZEME[Kredi Oranı]/AylıkGünSayısı,MALZEME[Kredi Vadesi\n(Yıl)]*AylıkGünSayısı,MALZEME[İlk Değer]-MALZEME[Peşinat]),0)","v":634.06458586867973},{"$f":"MALZEME[[#This Row],[Aylık Ödeme]]+MALZEME[Aylık İşletim Maliyetleri]","v":834.06458586867973},{"$f":"IFERROR((MALZEME[İlk Değer]>0)*SLN(MALZEME[İlk Değer],MALZEME[Sözleşme Sonunda Beklenen Değer],MALZEME[Kredi Vadesi\n(Yıl)]),0)","v":2500},{"$f":"IFERROR(MALZEME[Yıllık Amortisman (Doğru)]/AylıkGünSayısı,0)","v":208.33333333333334},{"$f":"IFERROR(MALZEME[İlk Değer]-(MALZEME[Yıllık Amortisman (Doğru)]*((TODAY()-MALZEME[Satın Alma veya Kiralama Tarihi])/YıllıkGünSayısı)),0)","v":25027.397260273974}]
[null,234,"Yapı Model 2","Ana dal","İyi","Yerel",4,12500,1500,"2011-03-10",3,7.7499999999999999E-2,120,3000,{"$f":"IFERROR(SUMPRODUCT(--(DAY(ROW(OFFSET($A$1,,,DATE(YEAR(MALZEME[[#This Row],[Satın Alma veya Kiralama Tarihi]])+MALZEME[[#This Row],[Kredi Vadesi\n(Yıl)]],MONTH(MALZEME[[#This Row],[Satın Alma veya Kiralama Tarihi]])-1,DAY(MALZEME[[#This Row],[Satın Alma veya Kiralama Tarihi]]))-TODAY()))+DATE(YEAR(MALZEME[[#This Row],[Satın Alma veya Kiralama Tarihi]])+MALZEME[[#This Row],[Kredi Vadesi\n(Yıl)]],MONTH(MALZEME[[#This Row],[Satın Alma veya Kiralama Tarihi]]),DAY(MALZEME[[#This Row],[Satın Alma veya Kiralama Tarihi]]))-1)=DAY(MALZEME[[#This Row],[Satın Alma veya Kiralama Tarihi]]))),0)","v":13},{"$f":"IFERROR(-(MALZEME[İlk Değer]>0)*(MALZEME[İlk Değer]<>MALZEME[Peşinat])*PMT(MALZEME[Kredi Oranı]/AylıkGünSayısı,MALZEME[Kredi Vadesi\n(Yıl)]*AylıkGünSayısı,MALZEME[İlk Değer]-MALZEME[Peşinat]),0)","v":343.43280007691891},{"$f":"MALZEME[[#This Row],[Aylık Ödeme]]+MALZEME[Aylık İşletim Maliyetleri]","v":463.43280007691891},{"$f":"IFERROR((MALZEME[İlk Değer]>0)*SLN(MALZEME[İlk Değer],MALZEME[Sözleşme Sonunda Beklenen Değer],MALZEME[Kredi Vadesi\n(Yıl)]),0)","v":3166.6666666666665},{"$f":"IFERROR(MALZEME[Yıllık Amortisman (Doğru)]/AylıkGünSayısı,0)","v":263.88888888888886},{"$f":"IFERROR(MALZEME[İlk Değer]-(MALZEME[Yıllık Amortisman (Doğru)]*((TODAY()-MALZEME[Satın Alma veya Kiralama Tarihi])/YıllıkGünSayısı)),0)","v":6669.8630136986303}]
[null,345,"Yapı Model 2","Dal 1","Vasat","Diğer",1,10000,2500,"2010-09-15",4,0.08,285,1000,{"$f":"IFERROR(SUMPRODUCT(--(DAY(ROW(OFFSET($A$1,,,DATE(YEAR(MALZEME[[#This Row],[Satın Alma veya Kiralama Tarihi]])+MALZEME[[#This Row],[Kredi Vadesi\n(Yıl)]],MONTH(MALZEME[[#This Row],[Satın Alma veya Kiralama Tarihi]])-1,DAY(MALZEME[[#This Row],[Satın Alma veya Kiralama Tarihi]]))-TODAY()))+DATE(YEAR(MALZEME[[#This Row],[Satın Alma veya Kiralama Tarihi]])+MALZEME[[#This Row],[Kredi Vadesi\n(Yıl)]],MONTH(MALZEME[[#This Row],[Satın Alma veya Kiralama Tarihi]]),DAY(MALZEME[[#This Row],[Satın Alma veya Kiralama Tarihi]]))-1)=DAY(MALZEME[[#This Row],[Satın Alma veya Kiralama Tarihi]]))),0)","v":20},{"$f":"IFERROR(-(MALZEME[İlk Değer]>0)*(MALZEME[İlk Değer]<>MALZEME[Peşinat])*PMT(MALZEME[Kredi Oranı]/AylıkGünSayısı,MALZEME[Kredi Vadesi\n(Yıl)]*AylıkGünSayısı,MALZEME[İlk Değer]-MALZEME[Peşinat]),0)","v":183.09691756126861},{"$f":"MALZEME[[#This Row],[Aylık Ödeme]]+MALZEME[Aylık İşletim Maliyetleri]","v":468.09691756126858},{"$f":"IFERROR((MALZEME[İlk Değer]>0)*SLN(MALZEME[İlk Değer],MALZEME[Sözleşme Sonunda Beklenen Değer],MALZEME[Kredi Vadesi\n(Yıl)]),0)","v":2250},{"$f":"IFERROR(MALZEME[Yıllık Amortisman (Doğru)]/AylıkGünSayısı,0)","v":187.5},{"$f":"IFERROR(MALZEME[İlk Değer]-(MALZEME[Yıllık Amortisman (Doğru)]*((TODAY()-MALZEME[Satın Alma veya Kiralama Tarihi])/YıllıkGünSayısı)),0)","v":4772.6027397260277}]
[null,"Toplam",null,null,null,null,{"$f":"SUBTOTAL(101,MALZEME[Kalan Hizmet Yılı])","v":3.3333333333333335},{"$f":"SUBTOTAL(109,MALZEME[İlk Değer])","v":52500},{"$f":"SUBTOTAL(109,MALZEME[Peşinat])","v":9000},null,{"$f":"SUBTOTAL(101,MALZEME[Kredi Vadesi\n(Yıl)])","v":3.6666666666666665},{"$f":"SUBTOTAL(101,MALZEME[Kredi Oranı])","v":8.5833333333333331E-2},{"$f":"SUBTOTAL(109,MALZEME[Aylık İşletim Maliyetleri])","v":605},{"$f":"SUBTOTAL(109,MALZEME[Sözleşme Sonunda Beklenen Değer])","v":24000},{"$f":"SUBTOTAL(101,MALZEME[Kalan Aylık Ödeme])","v":19},{"$f":"SUBTOTAL(109,MALZEME[Aylık Ödeme])","v":1160.5943035068672},{"$f":"SUBTOTAL(109,MALZEME[Toplam Aylık Maliyet])","v":1765.5943035068672},{"$f":"SUBTOTAL(101,MALZEME[Yıllık Amortisman (Doğru)])","v":2638.8888888888887},{"$f":"SUBTOTAL(101,MALZEME[Aylık Amortisman (Doğru)])","v":219.90740740740739},{"$f":"SUBTOTAL(109,MALZEME[Geçerli Değer])","v":36469.863013698632}]

{"sheet":"Özet Veri","index":2,"n_rows":15,"n_cols":8,"rows_kept":15,"cut":false,"hidden":true,"merged":[]}
[null,"Özet Veri"]
[null,"Bu sayfa gizli kalmalıdır. Bu sayfadaki PivotTable yapısını değiştirmek Pano Dilimleyicileri'nde hataya neden olabilir."]
[]
[null,"Eşya Açıklaması\n(Yapı ve Model)","(Tümü)"]
[null,"Yer","(Tümü)"]
[null,"Koşul","(Tümü)"]
[null,"Satıcı","(Tümü)"]
[null,"Kalan Hizmet Yılı","(Tümü)"]
[null,"Kredi Vadesi\n(Yıl)","(Tümü)"]
[]
[null,"Satır Etiketleri","Sayı","İşletim Maliyetleri","Ödeme Tutarı","Toplam Aylık Maliyet","Aylık Amortisman","Geçerli Değer "]
[null,123,1,200,634.06458586867973,834.06458586867973,208.33333333333334,25047.945205479453]
[null,234,1,120,343.43280007691891,463.43280007691891,263.88888888888886,6695.8904109589048]
[null,345,1,285,183.09691756126861,468.09691756126858,187.5,4791.0958904109593]
[null,"Genel Toplam",3,605,1160.5943035068672,1765.5943035068672,659.72222222222217,36534.931506849316]